bitfinex/quotes_SOLUSD_20240712
["timestamp","ask_amount","ask_price","bid_price","bid_amount"]
[1720803802647,43.7897,138.32,138.27,0.8564581]
[1720803803278,36.56,138.32,138.27,0.8564581]
[1720803803583,15.0471,138.37,138.28,21.2142]
[1720803804078,22.2741,138.37,138.28,21.2142]
[1720803804379,7.2281,138.35,138.28,21.2142]
[1720803804585,22.2741,138.37,138.28,21.2142]
[1720803804786,22.2741,138.37,138.29,45.0]
[1720803804946,36.56,138.38,138.29,45.0]
[1720803805774,43.7865,138.38,138.29,45.0]
[1720803805973,36.56,138.38,138.29,45.0]
[1720803806446,7.2286,138.34,138.28,21.2142]
[1720803807149,7.2279,138.36,138.28,21.2142]
[1720803807350,7.228,138.35,138.28,21.2142]
[1720803807747,42.36160161,138.38,138.28,21.2142]
[1720803807950,7.228,138.35,138.28,21.2142]
[1720803808958,42.36160161,138.38,138.28,21.2142]
[1720803809155,43.7866,138.38,138.28,21.2142]
[1720803809354,15.9781,138.4,138.29,45.0]
[1720803809584,52.5381,138.4,138.29,45.0]
[1720803809780,7.2273,138.37,138.29,45.0]
[1720803809995,7.2275,138.36,138.29,45.0]
[1720803810358,7.2283,138.35,138.29,45.0]
[1720803810785,7.2277,138.36,138.29,45.0]
[1720803810987,7.228,138.35,138.28,21.2142]
[1720803812295,7.2287,138.34,138.28,21.2142]
[1720803812588,54.6275,138.37,138.28,21.2142]
[1720803812797,7.2282,138.35,138.28,21.2142]
[1720803812998,7.2285,138.34,138.28,21.2142]
[1720803813293,7.2302,138.31,138.27,0.8564581]
[1720803813999,7.2297,138.32,138.27,0.8564581]
[1720803814372,36.56,138.34,138.27,0.8564581]
[1720803814789,52.1254,138.34,138.27,0.8564581]
[1720803814989,7.2299,138.32,138.27,0.8564581]
[1720803815291,7.2292,138.33,138.27,0.8564581]
[1720803816108,7.2307,138.3,138.27,0.8564581]
[1720803816903,7.2298,138.32,138.27,0.8564581]
[1720803817200,7.2307,138.3,138.27,0.8564581]
[1720803818102,36.56,138.31,138.27,0.8564581]
[1720803818279,45.0,138.3,138.27,0.8564581]
[1720803818474,36.56,138.31,138.27,0.8564581]
[1720803818676,7.2313,138.29,138.27,0.8564581]
[1720803820187,28.4486,138.28,138.27,0.8564581]
[1720803820920,51.6087,138.31,138.27,0.8564581]
[1720803821205,7.2317,138.28,138.27,0.8564581]
[1720803822192,7.2313,138.29,138.27,0.8564581]
[1720803822397,7.2304,138.31,138.27,0.8564581]
[1720803822780,7.2307,138.3,138.27,0.8564581]
[1720803823282,54.6349,138.32,138.27,0.8564581]
[1720803823487,7.2313,138.29,138.27,0.8564581]
[1720803823881,7.2317,138.28,138.27,0.8564581]
[1720803825705,7.2312,138.29,138.27,0.8564581]
[1720803825888,7.2317,138.28,138.27,0.8564581]
[1720803829304,43.7913,138.29,138.27,0.8564581]
[1720803829500,7.2317,138.28,138.27,0.8564581]
[1720803829704,43.7913,138.29,138.27,0.8564581]
[1720803829903,7.2308,138.3,138.27,0.8564581]
[1720803830912,7.2289,138.34,138.28,16.3656]
[1720803831285,20.9805872,138.35,138.27,0.8564581]
[1720803831286,7.2315,138.29,138.27,0.8564581]
[1720803831607,7.2302,138.31,138.27,0.8564581]
[1720803832511,60.43530161,138.33,138.27,0.8564581]
[1720803832715,7.2303,138.31,138.27,0.8564581]
[1720803832899,7.2313,138.29,138.27,0.8564581]
[1720803833409,7.2308,138.3,138.27,0.8564581]
[1720803834018,7.2312,138.29,138.27,0.8564581]
[1720803834892,7.2308,138.3,138.27,0.8564581]
[1720803835220,7.2303,138.31,138.27,0.8564581]
[1720803835596,13.1893872,138.32,138.27,0.8564581]
[1720803835795,7.2301,138.31,138.27,0.8564581]
[1720803836190,5.9596872,138.32,138.27,0.8564581]
[1720803836390,7.2312,138.29,138.27,0.8564581]
[1720803836591,24.0338872,138.32,138.27,0.8564581]
[1720803836592,7.2317,138.28,138.27,0.8564581]
[1720803836888,7.2308,138.3,138.27,0.8564581]
[1720803837415,7.2303,138.31,138.27,0.8564581]
[1720803837908,7.2308,138.3,138.27,0.8564581]
[1720803838116,7.2313,138.29,138.27,0.8564581]
[1720803838320,7.2317,138.28,138.27,0.8564581]
[1720803838517,5.9596872,138.32,138.27,0.8564581]
[1720803838706,7.2306,138.3,138.27,0.8564581]
[1720803838908,7.2303,138.31,138.27,0.8564581]
[1720803839227,7.2306,138.3,138.27,0.8564581]
[1720803839524,7.2312,138.29,138.27,0.8564581]
[1720803839900,5.9596872,138.32,138.27,0.8564581]
[1720803839901,7.2317,138.28,138.27,0.8564581]
[1720803841610,7.2316,138.29,138.27,0.8564581]
[1720803842405,7.2317,138.28,138.27,0.8564581]
[1720803842726,7.2313,138.29,138.27,0.8564581]
[1720803842921,7.2317,138.28,138.27,0.8564581]
[1720803843121,7.2312,138.29,138.27,0.8564581]
[1720803843325,7.2307,138.3,138.27,0.8564581]
[1720803843633,7.2303,138.31,138.27,0.8564581]
[1720803843924,7.2309,138.3,138.27,0.8564581]
[1720803844129,7.2313,138.29,138.27,0.8564581]
[1720803844331,5.9596872,138.32,138.27,0.8564581]
[1720803844720,7.2314,138.29,138.27,0.8564581]
[1720803845023,7.2317,138.28,138.27,0.8564581]
[1720803846028,7.2313,138.29,138.27,0.8564581]
[1720803846328,7.2308,138.3,138.27,0.8564581]
[1720803846526,7.2313,138.29,138.27,0.8564581]
[1720803846821,7.2317,138.28,138.27,0.8564581]
[1720803848528,25.5417,138.28,138.27,0.8564581]
[1720803849108,18.31,138.28,138.27,0.8564581]
[1720803849323,25.5417,138.28,138.27,0.8564581]
[1720803850228,18.31,138.28,138.27,0.8564581]
[1720803851036,7.2308,138.3,138.27,0.8564581]
[1720803851328,21.95560161,138.33,138.27,0.8564581]
[1720803851329,25.5411,138.29,138.27,0.8564581]
[1720803851528,18.31,138.28,138.27,0.8564581]
[1720803852432,7.2298,138.32,138.27,0.8564581]
[1720803852630,18.31,138.29,138.27,0.8564581]
[1720803853218,18.31,138.3,138.27,0.8564581]
[1720803853633,7.2301,138.31,138.27,22.4860581]
[1720803853839,18.31,138.3,138.27,22.4860581]
[1720803854526,25.5408,138.3,138.27,22.4860581]
[1720803854731,8.71711495,138.36,138.27,22.4860581]
[1720803854918,18.31,138.32,138.27,40.7960581]
[1720803855320,18.31,138.33,138.28,18.31]
[1720803856124,18.31,138.32,138.27,40.7960581]
[1720803856320,18.31,138.3,138.27,22.4860581]
[1720803856526,18.31,138.31,138.27,22.4860581]
[1720803856912,7.2293,138.33,138.27,22.4860581]
[1720803857137,18.31,138.31,138.27,22.4860581]
[1720803857936,18.31,138.33,138.28,18.31]
[1720803858147,18.31,138.33,138.29,1.04610318]
[1720803858312,18.31,138.32,138.27,22.4860581]
[1720803858641,18.31,138.32,138.27,40.7960581]
[1720803858838,18.31,138.33,138.27,40.7960581]
[1720803859250,18.31,138.32,138.27,40.7960581]
[1720803860215,18.31,138.33,138.28,18.31]
[1720803861216,18.31,138.33,138.27,22.4860581]
[1720803861217,18.31,138.32,138.27,40.7960581]
[1720803861826,18.31,138.32,138.27,22.4860581]
[1720803862313,18.31,138.3,138.27,22.4860581]
[1720803863850,18.31,138.31,138.27,22.4860581]
[1720803864035,18.31,138.32,138.27,40.7960581]
[1720803865232,18.31,138.33,138.27,22.4860581]
[1720803865433,18.31,138.32,138.27,40.7960581]
[1720803865635,18.31,138.31,138.27,22.4860581]
[1720803865962,18.31,138.32,138.27,40.7960581]
[1720803866321,18.31,138.33,138.27,40.7960581]
[1720803866646,34.2217,138.37,138.27,22.4860581]
[1720803866938,18.31,138.32,138.27,40.7960581]
[1720803867329,18.31,138.33,138.27,40.7960581]
[1720803867529,18.31,138.32,138.27,22.4860581]
[1720803867829,18.31,138.33,138.28,18.31]
[1720803868039,7.2276,138.36,138.28,18.31]
[1720803868239,18.31,138.33,138.28,18.31]
[1720803868543,18.31,138.34,138.29,18.31]
[1720803868724,18.31,138.37,138.31,33.7416]
[1720803869243,7.2262,138.39,138.32,24.9195]
[1720803869446,18.31,138.37,138.32,24.9195]
[1720803869756,18.31,138.38,138.32,26.25960047]
[1720803870637,7.2262,138.39,138.32,6.6095]
[1720803871148,7.2256,138.4,138.32,6.6095]
[1720803871877,7.2252,138.41,138.32,6.6095]
[1720803872049,7.2252,138.41,138.33,45.0]
[1720803872357,7.2255,138.4,138.34,1.40078096]
[1720803872532,7.2255,138.4,138.33,45.0]
[1720803872851,7.2247,138.42,138.34,15.8572]
[1720803873051,7.2249,138.41,138.34,15.8572]
[1720803873429,54.6098,138.43,138.34,15.8572]
[1720803873951,7.226,138.39,138.34,15.8572]
[1720803874149,7.2255,138.4,138.34,15.8572]
[1720803874945,7.2266,138.38,138.34,15.8572]
[1720803875131,7.2261,138.39,138.34,15.8572]
[1720803876453,7.2256,138.4,138.34,15.8572]
[1720803876830,7.2261,138.39,138.34,15.8572]
[1720803878062,7.2265,138.38,138.34,15.8572]
[1720803878238,7.2265,138.38,138.32,6.6095]
[1720803878439,7.2261,138.39,138.32,6.6095]
[1720803878953,7.2265,138.38,138.32,6.6095]
[1720803879252,36.55,138.4,138.32,6.6095]
[1720803879457,7.2278,138.36,138.31,15.3094]
[1720803880360,36.55,138.37,138.31,15.3094]
[1720803880562,45.0,138.39,138.31,15.3094]
[1720803880563,7.226,138.39,138.31,15.3094]
[1720803880750,7.2265,138.38,138.31,15.3094]
[1720803881058,36.55,138.4,138.31,15.3094]
[1720803881059,18.065,138.39,138.31,15.3094]
[1720803881240,36.55,138.4,138.31,15.3094]
[1720803881636,7.227,138.37,138.31,15.3094]
[1720803883057,7.2263,138.39,138.31,15.3094]
[1720803883358,43.7756,138.4,138.31,15.3094]
[1720803883560,7.226,138.39,138.31,15.3094]
[1720803883863,7.2273,138.37,138.31,15.3094]
[1720803884041,36.55,138.4,138.31,15.3094]
[1720803884359,45.0,138.39,138.31,15.3094]
[1720803884663,7.2265,138.38,138.31,15.3094]
[1720803885469,7.2267,138.38,138.31,15.3094]
[1720803886465,36.55,138.4,138.31,15.3094]
[1720803887045,7.2261,138.39,138.31,15.3094]
[1720803887535,34.4653,138.45,138.32,51.1083]
[1720803887748,36.55,138.43,138.32,51.1083]
[1720803888164,7.2261,138.39,138.32,51.1083]
[1720803888369,7.2261,138.39,138.32,6.1083]
[1720803888563,7.2255,138.4,138.32,6.1083]
[1720803888870,7.2247,138.42,138.33,15.1723]
[1720803889043,7.2247,138.42,138.34,45.0]
[1720803889655,7.2249,138.41,138.34,45.0]
[1720803890664,18.27,138.39,138.34,63.27]
[1720803892367,18.27,138.4,138.35,18.27]
[1720803892545,18.27,138.4,138.36,0.63313396]
[1720803893678,7.2245,138.42,138.35,24.6009]
[1720803893847,21.14119833,138.46,138.36,33.358]
[1720803894160,18.27,138.41,138.37,0.47253249]
[1720803894392,18.27,138.42,138.37,18.74253249]
[1720803894564,25.4943,138.42,138.37,18.74253249]
[1720803894756,7.2243,138.42,138.36,33.358]
[1720803894941,7.224,138.43,138.36,33.358]
[1720803895145,18.27,138.42,138.37,18.27]
[1720803895342,25.4945,138.42,138.37,18.27]
[1720803895566,7.2256,138.4,138.37,18.27]
[1720803895750,18.27,138.38,138.36,15.088]
[1720803896071,18.27,138.4,138.36,15.088]
[1720803897075,25.4955,138.4,138.36,15.088]
[1720803898452,25.4961,138.39,138.36,15.088]
[1720803898656,18.27,138.38,138.36,15.088]
[1720803900459,18.27,138.4,138.36,15.088]
[1720803901377,18.27,138.42,138.37,18.27]
[1720803901554,18.27,138.41,138.37,18.27]
[1720803901749,18.27,138.41,138.36,33.358]
[1720803902159,18.27,138.41,138.36,15.088]
[1720803902358,18.27,138.41,138.36,33.358]
[1720803902558,5.9596872,138.45,138.36,15.088]
[1720803902760,7.2238,138.43,138.36,15.088]
[1720803903677,7.2235,138.44,138.36,15.088]
[1720803903880,13.1826872,138.45,138.36,15.088]
[1720803904065,13.1826872,138.45,138.37,45.0]
[1720803904264,5.9596872,138.45,138.37,45.0]
[1720803904580,7.2233,138.44,138.37,45.0]
[1720803904960,5.9596872,138.45,138.37,45.0]
[1720803905264,7.2226,138.46,138.37,45.0]
[1720803905469,7.2234,138.44,138.37,45.0]
[1720803906075,7.2229,138.45,138.37,45.0]
[1720803906776,13.1821872,138.46,138.37,45.0]
[1720803907880,7.2229,138.45,138.37,45.0]
[1720803908071,7.2233,138.44,138.37,45.0]
[1720803909272,13.1820872,138.46,138.37,45.0]
[1720803909871,5.9596872,138.46,138.38,22.1496]
[1720803910180,5.9596872,138.46,138.39,45.0]
[1720803910486,13.02300161,138.48,138.4,15.3628]
[1720803910487,7.2214,138.48,138.4,15.3628]
[1720803910779,7.2208,138.49,138.4,15.3628]
[1720803910972,7.2208,138.49,138.41,51.3187]
[1720803911180,7.2203,138.5,138.42,15.3628]
[1720803911365,7.2213,138.48,138.42,15.3628]
[1720803911758,24.0089872,138.51,138.42,15.3628]
[1720803911965,7.2224,138.46,138.42,15.3628]
[1720803912282,7.2229,138.45,138.42,15.3628]
[1720803912468,7.2234,138.44,138.42,15.3628]
[1720803912870,7.2229,138.45,138.42,15.3628]
[1720803913390,18.0549,138.47,138.35,22.9162]
[1720803913587,81.53,138.46,138.36,20.0]
[1720803913972,7.2242,138.43,138.36,20.0]
[1720803914178,7.2246,138.42,138.36,20.0]
[1720803914785,81.53,138.46,138.35,22.9162]
[1720803914786,7.2253,138.41,138.35,22.9162]
[1720803915382,7.2245,138.42,138.35,22.9162]
[1720803916096,43.754,138.43,138.35,22.9162]
[1720803918084,7.2244,138.42,138.35,22.9162]
[1720803918289,36.53,138.43,138.35,22.9162]
[1720803918491,45.0,138.42,138.35,22.9162]
[1720803918697,7.2256,138.4,138.35,22.9162]
[1720803920102,45.0,138.42,138.35,22.9162]
[1720803920486,7.2247,138.42,138.35,22.9162]
[1720803920682,7.2251,138.41,138.35,22.9162]
[1720803922793,7.2245,138.42,138.35,22.9162]
[1720803923204,36.53,138.43,138.35,22.9162]
[1720803923509,7.2243,138.42,138.36,1.4453001]
[1720803924288,7.224,138.43,138.35,22.9162]
[1720803925223,7.2244,138.42,138.35,22.9162]
[1720803926092,7.224,138.43,138.35,22.9162]
[1720803927996,7.2245,138.42,138.35,22.9162]
[1720803928313,7.2251,138.41,138.35,22.9162]
[1720803930691,18.28,138.37,138.35,22.9162]
[1720803930891,18.28,138.38,138.35,22.9162]
[1720803931316,18.28,138.39,138.35,22.9162]
[1720803932597,7.2249,138.41,138.35,22.9162]
[1720803932901,7.2245,138.42,138.35,22.9162]
[1720803933304,36.54,138.43,138.35,22.9162]
[1720803933607,7.2256,138.4,138.35,22.9162]
[1720803934134,7.226,138.39,138.35,22.9162]
[1720803934696,7.2261,138.39,138.35,16.4351]
[1720803935192,7.227,138.37,138.31,22.9103]
[1720803935399,7.2266,138.38,138.31,22.9103]
[1720803936117,7.227,138.37,138.31,22.9103]
[1720803936299,7.2266,138.38,138.31,22.9103]
[1720803936998,7.2261,138.39,138.31,22.9103]
[1720803937194,7.2264,138.38,138.31,22.9103]
[1720803937712,7.2261,138.39,138.31,22.9103]
[1720803938106,7.2265,138.38,138.31,22.9103]
[1720803939217,7.2274,138.37,138.31,22.9103]
[1720803940820,7.2266,138.38,138.31,22.9103]
[1720803942207,36.54,138.4,138.31,22.9103]
[1720803942416,42.95251155,138.45,138.33,15.2715]
[1720803942635,7.2235,138.44,138.35,21.6445]
[1720803942924,7.2235,138.44,138.36,0.58773276]
[1720803943121,7.2239,138.43,138.36,0.58773276]
[1720803943339,7.2253,138.41,138.35,21.6445]
[1720803943707,2.88112044,138.46,138.35,21.6445]
[1720803943708,36.54,138.42,138.35,21.6445]
[1720803944327,18.063,138.41,138.35,15.2715]
[1720803944635,7.226,138.39,138.35,15.2715]
[1720803944798,7.2265,138.38,138.35,15.2715]
[1720803945309,7.2265,138.38,138.32,21.6373]
[1720803945494,36.54,138.39,138.32,21.6373]
[1720803945700,7.2274,138.37,138.32,21.6373]
[1720803946130,7.2275,138.36,138.32,21.6373]
[1720803946295,7.2271,138.37,138.32,21.6373]
[1720803947017,45.0,138.38,138.32,21.6373]
[1720803947018,7.2276,138.36,138.32,21.6373]
[1720803947217,7.2282,138.35,138.32,21.6373]
[1720803947409,7.2276,138.36,138.32,21.6373]
[1720803948306,7.2276,138.36,138.28,15.3849]
[1720803948307,7.2286,138.34,138.28,15.3849]
[1720803951300,7.2292,138.33,138.28,15.3849]
[1720803951826,7.2287,138.34,138.28,15.3849]
[1720803953503,7.2292,138.33,138.28,15.3849]
[1720803954032,43.7692,138.33,138.28,15.3849]
[1720803955234,45.0,138.32,138.28,15.3849]
[1720803955530,43.7692,138.33,138.28,15.3849]
[1720803955531,36.54,138.33,138.28,15.3849]
[1720803956946,7.2282,138.35,138.28,15.3849]
[1720803957225,45.0,138.34,138.28,15.3849]
[1720803958123,52.2286,138.34,138.28,15.3849]
[1720803958914,43.7678,138.36,138.28,15.3849]
[1720803959414,7.2282,138.35,138.28,15.3849]
[1720803960327,2.83919419,138.38,138.28,15.3849]
[1720803960328,38.97339419,138.38,138.28,15.3849]
[1720803960535,7.2297,138.32,138.28,15.3849]
[1720803960836,43.7692,138.33,138.28,15.3849]
[1720803961331,36.54,138.33,138.28,15.3849]
[1720803961539,7.2304,138.31,138.28,15.3849]
[1720803961730,7.2298,138.32,138.28,15.3849]
[1720803961914,43.7692,138.33,138.28,15.3849]
[1720803962415,7.2296,138.32,138.28,15.3849]
[1720803962715,43.7693,138.33,138.28,15.3849]
[1720803963128,43.7692,138.33,138.28,15.3849]
[1720803963745,7.2297,138.32,138.28,15.3849]
[1720803964611,7.2301,138.31,138.28,15.3849]
[1720803965028,7.2301,138.31,138.27,7.2538581]
[1720803965029,7.2301,138.31,138.27,0.8564581]
[1720803965411,7.2297,138.32,138.27,0.8564581]
[1720803966539,43.7692,138.33,138.27,0.8564581]
[1720803966833,45.0,138.32,138.27,0.8564581]
[1720803967347,43.7692,138.33,138.27,0.8564581]
[1720803967635,36.54,138.33,138.27,0.8564581]
[1720803968052,7.2282,138.35,138.28,21.8902]
[1720803969517,5.9596872,138.37,138.29,45.0]
[1720803969725,5.9596872,138.37,138.31,6.6605]
[1720803969925,36.54,138.42,138.31,6.6605]
[1720803970126,36.54,138.42,138.32,0.48312069]
[1720803970348,43.7647,138.42,138.33,0.71640673]
[1720803970824,43.7647,138.42,138.34,15.4447]
[1720803971219,7.225,138.41,138.34,15.4447]
[1720803971534,36.54,138.42,138.34,15.4447]
[1720803971749,18.0633,138.41,138.34,15.4447]
[1720803971909,7.2265,138.38,138.34,15.4447]
[1720803972115,18.0633,138.41,138.34,15.4447]
[1720803972311,36.54,138.42,138.34,15.4447]
[1720803972738,7.2249,138.41,138.34,15.4447]
[1720803972941,43.7645,138.42,138.34,15.4447]
[1720803973236,7.225,138.41,138.34,15.4447]
[1720803973449,7.2256,138.4,138.34,15.4447]
[1720803973629,7.226,138.39,138.34,15.4447]
[1720803973948,54.6017,138.42,138.34,15.4447]
[1720803974150,7.2268,138.38,138.34,15.4447]
[1720803974826,7.2255,138.4,138.34,15.4447]
[1720803975033,7.226,138.39,138.34,15.4447]
[1720803975344,7.2256,138.4,138.34,15.4447]
[1720803976028,52.225,138.41,138.34,15.4447]
[1720803976732,7.2255,138.4,138.34,15.4447]
[1720803977320,36.54,138.42,138.34,15.4447]
[1720803977625,45.0,138.41,138.34,15.4447]
[1720803978626,36.54,138.42,138.34,15.4447]
[1720803979023,43.7648,138.42,138.34,15.4447]
[1720803979643,7.2239,138.43,138.35,6.6429]
[1720803980250,7.2214,138.48,138.38,6.6429]
[1720803980450,7.222,138.47,138.38,6.6429]
[1720803981029,7.2223,138.46,138.38,6.6429]
[1720803981544,7.2228,138.45,138.38,6.6429]
[1720803981718,7.2234,138.44,138.38,6.6429]
[1720803982627,7.2238,138.43,138.38,6.6429]
[1720803983954,7.2235,138.44,138.38,6.6429]
[1720803984253,7.2241,138.43,138.38,6.6429]
[1720803984466,45.0,138.45,138.38,6.6429]
[1720803984629,7.2235,138.44,138.38,6.6429]
[1720803985131,7.2233,138.44,138.38,6.6429]
[1720803985346,7.2238,138.43,138.38,6.6429]
[1720803985933,7.2235,138.44,138.38,6.6429]
[1720803986134,7.223,138.45,138.38,6.6429]
[1720803986334,7.2234,138.44,138.38,6.6429]
[1720803986535,7.2239,138.43,138.38,6.6429]
[1720803986746,7.2229,138.45,138.38,6.6429]
[1720803986962,36.54,138.46,138.38,6.6429]
[1720803987252,43.7623,138.46,138.38,6.6429]
[1720803988844,36.54,138.46,138.38,6.6429]
[1720803989046,7.2213,138.48,138.39,45.0]
[1720803989253,7.2213,138.48,138.4,15.3418]
[1720803989763,7.2218,138.47,138.4,15.3418]
[1720803991770,7.2214,138.48,138.4,15.3418]
[1720803992068,43.7609,138.49,138.4,15.3418]
[1720803992264,7.2204,138.5,138.41,6.5828]
[1720803992455,7.2204,138.5,138.42,1.44279844]
[1720803992645,7.2208,138.49,138.43,1.44269452]
[1720803993471,7.2213,138.48,138.41,6.5828]
[1720803994856,7.2205,138.5,138.41,6.5828]
[1720803995160,7.2204,138.5,138.42,45.0]
[1720803995361,7.2197,138.51,138.43,15.557]
[1720803995669,13.1789872,138.52,138.44,6.0509]
[1720803996048,7.2202,138.5,138.44,6.0509]
[1720803997265,7.2209,138.49,138.44,6.0509]
[1720803997469,7.2215,138.48,138.44,6.0509]
[1720803997670,7.222,138.47,138.44,6.0509]
[1720803997845,7.2212,138.49,138.44,6.0509]
[1720803998247,7.2204,138.5,138.44,6.0509]
[1720803998447,7.2199,138.51,138.44,6.0509]
[1720803998756,7.2202,138.5,138.44,6.0509]
[1720803999579,7.2207,138.49,138.44,6.0509]
[1720804000371,7.2221,138.47,138.44,6.0509]
[1720804000555,5.9596872,138.52,138.44,6.0509]
[1720804000556,7.2217,138.48,138.44,6.0509]
[1720804000869,7.2209,138.49,138.44,6.0509]
[1720804002452,7.2213,138.48,138.44,6.0509]
[1720804002965,7.2209,138.49,138.44,6.0509]
[1720804004172,7.2213,138.48,138.44,6.0509]
[1720804004769,7.2208,138.49,138.44,6.0509]
[1720804005153,7.2214,138.48,138.44,6.0509]
[1720804005571,43.7605,138.5,138.44,6.0509]
[1720804005880,43.7603,138.5,138.44,6.0509]
[1720804006179,5.9596872,138.52,138.44,6.0509]
[1720804006344,7.2197,138.51,138.44,6.0509]
[1720804007049,5.9596872,138.52,138.44,6.0509]
[1720804007353,13.1787872,138.52,138.44,6.0509]
[1720804007749,7.2199,138.51,138.44,6.0509]
[1720804007963,13.1789872,138.52,138.44,6.0509]
[1720804008377,7.2197,138.51,138.44,6.0509]
[1720804009066,7.2198,138.51,138.44,6.0509]
[1720804009779,7.2203,138.5,138.44,6.0509]
[1720804010445,7.2198,138.51,138.44,6.0509]
[1720804010872,13.1789872,138.52,138.44,6.0509]
[1720804011260,5.9596872,138.52,138.44,6.0509]
[1720804011457,5.9596872,138.52,138.45,15.4302]
[1720804011987,13.1788872,138.52,138.45,15.4302]
[1720804012472,7.2198,138.51,138.45,15.4302]
[1720804012677,5.9596872,138.52,138.45,15.4302]
[1720804012981,7.2205,138.5,138.45,15.4302]
[1720804013350,7.2198,138.51,138.45,15.4302]
[1720804013547,7.2205,138.5,138.45,15.4302]
[1720804013748,7.2228,138.45,138.44,6.0509]
[1720804013955,7.2228,138.45,138.42,15.3494]
[1720804014149,7.2219,138.47,138.42,15.3494]
[1720804014383,7.2224,138.46,138.42,15.3494]
[1720804014968,54.592,138.49,138.42,15.3494]
[1720804015273,45.0,138.48,138.42,15.3494]
[1720804015488,7.2219,138.47,138.42,15.3494]
[1720804015692,36.54,138.49,138.42,15.3494]
[1720804015855,43.761,138.49,138.42,15.3494]
[1720804016353,36.54,138.49,138.42,15.3494]
[1720804016677,45.0,138.48,138.42,15.3494]
[1720804016852,7.2224,138.46,138.42,15.3494]
[1720804017052,7.2218,138.47,138.42,15.3494]
[1720804017478,7.2223,138.46,138.42,15.3494]
[1720804017980,36.54,138.46,138.39,21.2808]
[1720804018170,45.0,138.45,138.39,21.2808]
[1720804018373,7.2237,138.44,138.39,21.2808]
[1720804019099,43.7626,138.46,138.39,21.2808]
[1720804019388,43.7624,138.46,138.39,21.2808]
[1720804019569,7.2228,138.45,138.39,21.2808]
[1720804019959,43.7624,138.46,138.39,21.2808]
[1720804020699,72.16416594,138.52,138.39,21.2808]
[1720804020990,7.2231,138.45,138.39,21.2808]
[1720804021160,7.2225,138.46,138.39,21.2808]
[1720804021360,7.2214,138.48,138.39,21.2808]
[1720804021561,7.2209,138.49,138.4,16.1055]
[1720804022186,7.2209,138.49,138.41,45.0]
[1720804022493,49.7200872,138.5,138.42,6.0809]
[1720804022660,13.1800872,138.5,138.43,16.1055]
[1720804023263,5.9596872,138.5,138.44,6.426]
[1720804023489,36.54,138.55,138.45,15.6176]
[1720804023665,7.22,138.51,138.45,15.6176]
[1720804023986,7.2192,138.52,138.45,15.6176]
[1720804024172,7.2197,138.51,138.45,15.6176]
[1720804024373,7.2193,138.52,138.45,15.6176]
[1720804024573,7.2188,138.53,138.45,15.6176]
[1720804024771,7.2181,138.54,138.45,15.6176]
[1720804025089,7.2187,138.53,138.45,15.6176]
[1720804025290,7.2192,138.52,138.45,15.6176]
[1720804025592,7.2188,138.53,138.45,15.6176]
[1720804025770,7.2195,138.52,138.45,15.6176]
[1720804026568,36.54,138.55,138.45,15.6176]
[1720804027180,45.0,138.54,138.45,15.6176]
[1720804027378,7.2195,138.52,138.45,15.6176]
[1720804028073,7.2182,138.54,138.45,15.6176]
[1720804028271,43.7577,138.55,138.47,16.5562]
[1720804028586,16.4868,138.6,138.49,6.0998]
[1720804028785,42.650132,138.59,138.49,6.0998]
[1720804029096,7.2176,138.55,138.49,6.0998]
[1720804029387,36.54,138.59,138.49,6.0998]